fUST/lending_fUST_20240814
["ID","MTS","AMOUNT","RATE_DAILY","PERIOD"]
[334905460,1723635068171,-500.0,0.00015342,2]
[334905461,1723635068182,-8875.6,0.00015342,2]
[334905462,1723635068193,-500.0,0.00015342,2]
[334905463,1723635068204,-1106.446735,0.00015342,2]
[334905464,1723635068214,-151.0,0.00015476,2]
[334905465,1723635068225,-1345.2413753,0.00015537,2]
[334905466,1723635068237,-500.0,0.0001558,2]
[334905467,1723635068249,-500.0,0.00015616,2]
[334905468,1723635068259,-152.920448,0.00015616,2]
[334905469,1723635068272,-151.896447,0.00015616,2]
[334905470,1723635068281,-219.43136535,0.00015616,2]
[334905471,1723635068291,-509.78776944,0.00015616,2]
[334905472,1723635068301,-500.0,0.00015616,2]
[334905473,1723635068311,-500.0,0.00015616,2]
[334905474,1723635068320,-511.21376885,0.00015616,2]
[334905475,1723635068329,-1156.12,0.00015616,2]
[334905476,1723635068341,-201.94,0.00015616,2]
[334905477,1723635068351,-545.81489573,0.00015616,2]
[334905478,1723635068362,-500.0,0.00015616,2]
[334905479,1723635068372,-500.0,0.00015616,2]
[334905480,1723635068382,-500.0,0.00015616,2]
[334905481,1723635068391,-500.0,0.00015616,2]
[334905482,1723635068401,-500.0,0.00015616,2]
[334905483,1723635068411,-500.0,0.00015616,2]
[334905484,1723635068423,-500.0,0.00015616,2]
[334905485,1723635068433,-500.0,0.00015616,2]
[334905486,1723635068444,-500.0,0.00015616,2]
[334905487,1723635068454,-500.0,0.00015616,2]
[334905488,1723635068464,-500.0,0.00015616,2]
[334905489,1723635068475,-500.0,0.00015616,2]
[334905490,1723635068484,-500.0,0.00015616,2]
[334905491,1723635068494,-729.53,0.00015616,2]
[334905492,1723635068504,-500.0,0.00015616,2]
[334905493,1723635068513,-500.0,0.00015616,2]
[334905494,1723635068525,-752.29,0.00015616,2]
[334905495,1723635068535,-500.0,0.00015616,2]
[334905496,1723635068545,-487.02895365,0.00015616,2]
[334905497,1723635068555,-1148.36,0.00015616,2]
[334905498,1723635068565,-500.0,0.00015616,2]
[334905499,1723635068574,-500.0,0.00015616,2]
[334905500,1723635068584,-748.17,0.00015616,2]
[334905501,1723635068594,-298.38625334,0.00015616,2]
[334905502,1723635068603,-500.0,0.00015616,2]
[334905503,1723635068612,-605.9449317,0.00015616,2]
[334905504,1723635068622,-500.0,0.00015616,2]
[334905505,1723635068632,-500.0,0.00015616,2]
[334905506,1723635068642,-500.0,0.00015616,2]
[334905507,1723635068652,-500.0,0.00015616,2]
[334905508,1723635068663,-604.73,0.00015616,2]
[334905509,1723635068672,-500.77,0.00015616,2]
[334905510,1723635068682,-639.97,0.00015616,2]
[334905511,1723635068693,-500.0,0.00015616,2]
[334905512,1723635068702,-508.40384045,0.00015616,2]
[334905513,1723635068711,-512.20070473,0.00015616,2]
[334905514,1723635068720,-1809.08,0.00015616,2]
[334905515,1723635068730,-590.38,0.00015616,2]
[334905516,1723635068749,-500.0,0.00015616,2]
[334905517,1723635068759,-1086.68,0.00015616,2]
[334905518,1723635068769,-751.13,0.00015616,2]
[334905519,1723635068780,-788.87,0.00015616,2]
[334905520,1723635068791,-671.25,0.00015616,2]
[334905521,1723635068801,-500.0,0.00015616,2]
[334905522,1723635068811,-867.43,0.00015616,2]
[334905523,1723635068822,-500.0,0.00015616,2]
[334905524,1723635068832,-500.0,0.00015616,2]
[334905525,1723635068843,-500.0,0.00015616,2]
[334905526,1723635068854,-500.0,0.00015616,2]
[334905527,1723635068864,-520.09,0.00015616,2]
[334905528,1723635068874,-876.17,0.00015616,2]
[334905529,1723635068885,-3030.93,0.00015616,2]
[334905530,1723635068896,-4316.81,0.00015616,2]
[334905531,1723635068906,-500.0,0.00015616,2]
[334905532,1723635068924,-745.65,0.00015616,2]
[334905533,1723635068935,-500.0,0.00015616,2]
[334905534,1723635068946,-802.0,0.00015616,2]
[334905535,1723635068956,-529.19207589,0.00015616,2]
[334905536,1723635068967,-1202.94,0.00015616,2]
[334905537,1723635068978,-500.0,0.00015616,2]
[334905538,1723635068989,-500.0,0.00015616,2]
[334905539,1723635069000,-506.48175887,0.00015616,2]
[334905540,1723635069010,-735.63,0.00015616,2]
[334905541,1723635069020,-500.0,0.00015616,2]
[334905542,1723635069030,-500.0,0.00015616,2]
[334905543,1723635069040,-516.15,0.00015616,2]
[334905544,1723635069050,-500.0,0.00015616,2]
[334905545,1723635069061,-709.89,0.00015616,2]
[334905546,1723635069072,-500.0,0.00015616,2]
[334905547,1723635069082,-500.0,0.00015616,2]
[334905548,1723635069093,-513.65,0.00015616,2]
[334905549,1723635069104,-500.0,0.00015616,2]
[334905550,1723635069115,-500.0,0.00015616,2]
[334905551,1723635069125,-3876.72,0.00015616,2]
[334905552,1723635069135,-438.3700614,0.00015616,2]
[334905553,1723635069149,-526.34,0.00015616,2]
[334905554,1723635069158,-500.0,0.00015616,2]
[334905555,1723635069170,-500.0,0.00015616,2]
[334905556,1723635069179,-609.16,0.00015616,2]
[334905557,1723635069191,-500.0,0.00015616,2]
[334905558,1723635069200,-1595.58,0.00015616,2]
[334905559,1723635069210,-886.37,0.00015616,2]
[334905560,1723635069221,-500.0,0.00015616,2]
[334905561,1723635069231,-541.35,0.00015616,2]
[334905562,1723635069242,-500.0,0.00015616,2]
[334905563,1723635069252,-504.25724772,0.00015616,2]
[334905564,1723635069262,-500.0,0.00015616,2]
[334905565,1723635069272,-500.0,0.00015616,2]
[334905566,1723635069282,-507.4392915,0.00015616,2]
[334905567,1723635069292,-500.0,0.00015616,2]
[334905568,1723635069301,-500.0,0.00015616,2]
[334905569,1723635069311,-500.0,0.00015616,2]
[334905570,1723635069321,-516.04,0.00015616,2]
[334905571,1723635069331,-500.0,0.00015616,2]
[334905572,1723635069341,-500.0,0.00015616,2]
[334905573,1723635069352,-500.0,0.00015616,2]
[334905574,1723635069362,-500.0,0.00015616,2]
[334905575,1723635069373,-287.15968847,0.00015616,2]
[334905576,1723635069383,-500.0,0.00015616,2]
[334905577,1723635069392,-8875.6,0.00015616,2]
[334905578,1723635069402,-500.0,0.00015616,2]
[334905579,1723635069413,-400.17755878,0.00015642,2]
[334905580,1723635069423,-400.0,0.00015642,2]
[334905581,1723635069432,-476.43351542,0.00015664,2]
[334905582,1723635069442,-500.0,0.0001589,2]
[334905583,1723635069452,-500.0,0.0001589,2]
[334905584,1723635069463,-500.0,0.0001589,2]
[334905585,1723635069472,-1156.12,0.0001589,2]
[334905586,1723635069482,-500.0,0.0001589,2]
[334905587,1723635069492,-500.0,0.0001589,2]
[334905588,1723635069502,-151.0,0.0001589,2]
[334905589,1723635069512,-194.09,0.0001589,2]
[334905590,1723635069522,-415.83,0.0001589,2]
[334905591,1723635069532,-500.0,0.0001589,2]
[334905592,1723635069543,-500.0,0.0001589,2]
[334905593,1723635069553,-500.0,0.0001589,2]
[334905594,1723635069563,-500.0,0.0001589,2]
[334905595,1723635069573,-500.0,0.0001589,2]
[334905596,1723635069583,-500.0,0.0001589,2]
[334905597,1723635069594,-500.0,0.0001589,2]
[334905598,1723635069603,-500.0,0.0001589,2]
[334905599,1723635069617,-500.0,0.0001589,2]
[334905600,1723635069627,-729.53,0.0001589,2]
[334905601,1723635069637,-500.0,0.0001589,2]
[334905602,1723635069647,-500.0,0.0001589,2]
[334905603,1723635069657,-752.29,0.0001589,2]
[334905604,1723635069669,-249.74158468,0.0001589,2]
[334905605,1723635069679,-1148.36,0.0001589,2]
[334905606,1723635069690,-500.0,0.0001589,2]
[334905607,1723635069700,-476.99783216,0.0001589,2]
[334905608,1723635069709,-748.17,0.0001589,2]
[334905609,1723635069719,-500.0,0.0001589,2]
[334905610,1723635069728,-500.0,0.0001589,2]
[334905611,1723635069738,-500.0,0.0001589,2]
[334905612,1723635069749,-500.0,0.0001589,2]
[334905613,1723635069759,-604.73,0.0001589,2]
[334905614,1723635069769,-500.77,0.0001589,2]
[334905615,1723635069779,-639.97,0.0001589,2]
[334905616,1723635069793,-151.0,0.0001589,2]
[334905617,1723635069803,-172.508369,0.0001589,2]
[334905618,1723635069814,-500.0,0.0001589,2]
[334905619,1723635069824,-192.591101,0.0001589,2]
[334905620,1723635069834,-192.591101,0.0001589,2]
[334905621,1723635069845,-219.14014,0.0001589,2]
[334905622,1723635069855,-219.14014,0.0001589,2]
[334905623,1723635069864,-1809.08,0.0001589,2]
[334905624,1723635069874,-590.38,0.0001589,2]
[334905625,1723635069884,-500.0,0.0001589,2]
[334905626,1723635069894,-1086.68,0.0001589,2]
[334905627,1723635069904,-359.600551,0.0001589,2]
[334905628,1723635069916,-751.13,0.0001589,2]
[334905629,1723635069926,-359.600551,0.0001589,2]
[334905630,1723635069935,-1612.303288,0.0001589,2]
[334905631,1723635069946,-1612.303288,0.0001589,2]
[334905632,1723635069956,-671.25,0.0001589,2]
[334905633,1723635069966,-788.87,0.0001589,2]
[334905634,1723635069976,-500.0,0.0001589,2]
[334905635,1723635069986,-867.43,0.0001589,2]
[334905636,1723635069996,-263.74,0.0001589,2]
[334905637,1723635070005,-517.02848883,0.0001589,2]
[334905638,1723635070016,-500.0,0.0001589,2]
[334905639,1723635070026,-520.09,0.0001589,2]
[334905640,1723635070037,-876.17,0.0001589,2]
[334905641,1723635070047,-3030.93,0.0001589,2]
[334905642,1723635070057,-4316.81,0.0001589,2]
[334905643,1723635070067,-500.0,0.0001589,2]
[334905644,1723635070076,-745.65,0.0001589,2]
[334905645,1723635070086,-500.0,0.0001589,2]
[334905646,1723635070097,-802.0,0.0001589,2]
[334905647,1723635070108,-1202.94,0.0001589,2]
[334905648,1723635070229,-500.0,0.0001589,2]
[334905649,1723635070242,-500.0,0.0001589,2]
[334905650,1723635070252,-735.63,0.0001589,2]
[334905651,1723635070261,-184.883189,0.0001589,2]
[334905652,1723635070271,-500.0,0.0001589,2]
[334905653,1723635070282,-229.694717,0.0001589,2]
[334905654,1723635070291,-500.0,0.0001589,2]
[334905655,1723635070301,-229.694717,0.0001589,2]
[334905656,1723635070310,-516.15,0.0001589,2]
[334905657,1723635070320,-275.96284929,0.0001589,2]
[334905658,1723635070330,-709.89,0.0001589,2]
[334905659,1723635070339,-504.564442,0.0001589,2]
[334905660,1723635070349,-357.04,0.0001589,2]
[334905661,1723635070358,-504.564442,0.0001589,2]
[334905662,1723635070368,-825.200145,0.0001589,2]
[334905663,1723635070378,-825.200145,0.0001589,2]
[334905664,1723635070388,-151.0,0.0001589,2]
[334905665,1723635070398,-500.0,0.0001589,2]
[334905666,1723635070407,-151.0,0.0001589,2]
[334905667,1723635070418,-513.65,0.0001589,2]
[334905668,1723635070427,-500.0,0.0001589,2]
[334905669,1723635070437,-500.0,0.0001589,2]
[334905670,1723635070447,-3876.72,0.0001589,2]
[334905671,1723635070456,-316.144537,0.0001589,2]
[334905672,1723635070467,-1247.112199,0.0001589,2]
[334905673,1723635070477,-316.144537,0.0001589,2]
[334905674,1723635070487,-1247.112199,0.0001589,2]
[334905675,1723635070496,-526.34,0.0001589,2]
[334905676,1723635070506,-500.0,0.0001589,2]
[334905677,1723635070517,-609.16,0.0001589,2]
[334905678,1723635070527,-500.0,0.0001589,2]
[334905679,1723635070538,-151.0,0.0001589,2]
[334905680,1723635070549,-1595.58,0.0001589,2]
[334905681,1723635070561,-1083.390094,0.0001589,2]
[334905682,1723635070571,-886.37,0.0001589,2]
[334905683,1723635070581,-506.95612343,0.0001589,2]
[334905684,1723635070591,-1083.390094,0.0001589,2]
[334905685,1723635070602,-541.35,0.0001589,2]
[334905686,1723635070612,-500.0,0.0001589,2]
[334905687,1723635070622,-500.0,0.0001589,2]
[334905688,1723635070632,-500.0,0.0001589,2]
[334905689,1723635070643,-500.0,0.0001589,2]
[334905690,1723635070656,-500.0,0.0001589,2]
[334905691,1723635070668,-500.0,0.0001589,2]
[334905692,1723635070678,-516.04,0.0001589,2]
[334905693,1723635070687,-500.0,0.0001589,2]
[334905694,1723635070697,-500.0,0.0001589,2]
[334905695,1723635070706,-500.0,0.0001589,2]
[334905696,1723635070717,-500.0,0.0001589,2]
[334905697,1723635070728,-500.0,0.0001589,2]
[334905698,1723635070742,-8875.6,0.0001589,2]
[334905699,1723635070751,-500.0,0.0001589,2]
[334905700,1723635070763,-154.79103211,0.00016,2]
[334905701,1723635070772,-200.0,0.00016,2]
[334905702,1723635070781,-3000.0,0.00016,2]
[334905703,1723635070791,-3000.0,0.0001601,2]
[334905704,1723635070801,-3000.0,0.0001602,2]
[334905705,1723635070810,-3000.0,0.0001603,2]
[334905706,1723635070819,-3000.0,0.0001604,2]
[334905707,1723635070829,-3000.0,0.0001605,2]
[334905708,1723635070838,-3000.0,0.0001606,2]
[334905709,1723635070849,-3000.0,0.0001607,2]
[334905710,1723635070858,-1194.731559,0.0001607,2]
[334905711,1723635070869,-1194.731559,0.0001607,2]
[334905712,1723635070879,-582.76278,0.0001607,2]
[334905713,1723635070888,-151.0,0.0001607,2]
[334905714,1723635070897,-582.76278,0.0001607,2]
[334905715,1723635070908,-3000.0,0.0001608,2]
[334905716,1723635070918,-3000.0,0.0001609,2]
[334905717,1723635070929,-3000.0,0.000161,2]
[334905718,1723635070942,-3000.0,0.0001611,2]
[334905719,1723635070953,-1000.0,0.00016115,2]
[334905720,1723635070963,-151.0,0.0001612,2]
[334905721,1723635070975,-3000.0,0.0001612,2]
[334905722,1723635070984,-1560.315808,0.0001612,2]
[334905723,1723635070994,-1560.315808,0.0001612,2]
[334905724,1723635071005,-151.0,0.0001612,2]
[334905725,1723635071016,-185.862977,0.0001612,2]
[334905726,1723635071027,-185.862977,0.0001612,2]
[334905727,1723635071039,-151.0,0.0001613,2]
[334905728,1723635071050,-151.0,0.0001613,2]
[334905729,1723635071060,-3000.0,0.0001613,2]
[334905730,1723635071069,-3000.0,0.0001614,2]
[334905731,1723635071081,-3000.0,0.0001615,2]
[334905732,1723635071090,-151.0,0.0001616,2]
[334905733,1723635071107,-247.111536,0.0001616,2]
[334905734,1723635071120,-247.111536,0.0001616,2]
[334905735,1723635071131,-3512.003828,0.0001616,2]
[334905736,1723635071145,-571.22386601,0.00016164,2]
[334905737,1723635071157,-261.67,0.00016164,2]
[334905738,1723635071168,-500.0,0.00016164,2]
[334905739,1723635071178,-1156.12,0.00016164,2]
[334905740,1723635071189,-500.0,0.00016164,2]
[334905741,1723635071199,-500.0,0.00016164,2]
[334905742,1723635071208,-151.0,0.00016164,2]
[334905743,1723635071218,-500.0,0.00016164,2]
[334905744,1723635071230,-500.0,0.00016164,2]
[334905745,1723635071241,-500.0,0.00016164,2]
[334905746,1723635071251,-500.0,0.00016164,2]
[334905747,1723635071261,-151.0,0.00016164,2]
[334905748,1723635071271,-500.0,0.00016164,2]
[334905749,1723635071281,-500.0,0.00016164,2]
[334905750,1723635071290,-151.0,0.00016164,2]
[334905751,1723635071300,-500.0,0.00016164,2]
[334905752,1723635071310,-379.20324874,0.00016164,2]
[334905753,1723635071319,-151.0,0.00016164,2]
[334905754,1723635071329,-151.0,0.00016164,2]
[334905755,1723635071338,-729.53,0.00016164,2]
[334905756,1723635071348,-500.0,0.00016164,2]
[334905757,1723635071357,-500.0,0.00016164,2]
[334905758,1723635071367,-752.29,0.00016164,2]
[334905759,1723635071377,-1148.36,0.00016164,2]
[334905760,1723635071387,-500.0,0.00016164,2]
[334905761,1723635071396,-748.17,0.00016164,2]
[334905762,1723635071407,-500.0,0.00016164,2]
[334905763,1723635071418,-500.0,0.00016164,2]
[334905764,1723635071427,-500.0,0.00016164,2]
[334905765,1723635071437,-500.0,0.00016164,2]
[334905766,1723635071447,-604.73,0.00016164,2]
[334905767,1723635071457,-500.77,0.00016164,2]
[334905768,1723635071466,-639.97,0.00016164,2]
[334905769,1723635071476,-500.0,0.00016164,2]
[334905770,1723635071486,-1809.08,0.00016164,2]
[334905771,1723635071496,-590.38,0.00016164,2]
[334905772,1723635071506,-517.16,0.00016164,2]
[334905773,1723635071516,-1086.68,0.00016164,2]
[334905774,1723635071525,-751.13,0.00016164,2]
[334905775,1723635071535,-671.25,0.00016164,2]
[334905776,1723635071544,-788.87,0.00016164,2]
[334905777,1723635071554,-692.822133,0.00016164,2]
[334905778,1723635071564,-500.0,0.00016164,2]
[334905779,1723635071574,-692.822133,0.00016164,2]
[334905780,1723635071584,-867.43,0.00016164,2]
[334905781,1723635071594,-500.0,0.00016164,2]
[334905782,1723635071604,-1328.988569,0.00016164,2]
[334905783,1723635071614,-520.09,0.00016164,2]
[334905784,1723635071624,-1328.988569,0.00016164,2]
[334905785,1723635071634,-876.17,0.00016164,2]
[334905786,1723635071644,-151.0,0.00016164,2]
[334905787,1723635071653,-3030.93,0.00016164,2]
[334905788,1723635071665,-451.064135,0.00016164,2]
[334905789,1723635071675,-4316.81,0.00016164,2]
[334905790,1723635071685,-500.0,0.00016164,2]
[334905791,1723635071695,-745.65,0.00016164,2]
[334905792,1723635071704,-451.064135,0.00016164,2]
[334905793,1723635071714,-500.0,0.00016164,2]
[334905794,1723635071724,-802.0,0.00016164,2]
[334905795,1723635071734,-1202.94,0.00016164,2]
[334905796,1723635071744,-500.0,0.00016164,2]
[334905797,1723635071754,-500.0,0.00016164,2]
[334905798,1723635071763,-735.63,0.00016164,2]
[334905799,1723635071774,-399.28,0.00016164,2]
[334905800,1723635071784,-442.56,0.00016164,2]
[334905801,1723635071795,-516.15,0.00016164,2]
[334905802,1723635071805,-709.89,0.00016164,2]
[334905803,1723635071814,-500.0,0.00016164,2]
[334905804,1723635071824,-513.65,0.00016164,2]
[334905805,1723635071834,-213.54,0.00016164,2]
[334905806,1723635071843,-552.28989186,0.00016164,2]
[334905807,1723635071853,-2717.504076,0.00016164,2]
[334905808,1723635071863,-3876.72,0.00016164,2]
[334905809,1723635071873,-2717.504076,0.00016164,2]
[334905810,1723635071882,-526.34,0.00016164,2]
[334905811,1723635071891,-500.0,0.00016164,2]
[334905812,1723635071901,-609.16,0.00016164,2]
[334905813,1723635071910,-153.13269829,0.00016164,2]
[334905814,1723635071921,-1595.58,0.00016164,2]
[334905815,1723635071930,-886.37,0.00016164,2]
[334905816,1723635071940,-541.35,0.00016164,2]
[334905817,1723635071950,-500.0,0.00016164,2]
[334905818,1723635071962,-500.0,0.00016164,2]
[334905819,1723635071972,-500.0,0.00016164,2]
[334905820,1723635071982,-500.0,0.00016164,2]
[334905821,1723635072106,-500.0,0.00016164,2]
[334905822,1723635072125,-500.0,0.00016164,2]
[334905823,1723635072134,-516.04,0.00016164,2]
[334905824,1723635072145,-500.0,0.00016164,2]
[334905825,1723635072157,-500.0,0.00016164,2]
[334905826,1723635072166,-385.37447866,0.00016164,2]
[334905827,1723635072176,-182.03,0.00016164,2]
[334905828,1723635072186,-229.85288378,0.00016164,2]
[334905829,1723635072196,-8875.6,0.00016164,2]
[334905830,1723635072205,-500.0,0.00016164,2]
[334905831,1723635072214,-1106.446735,0.00016164,2]
[334905832,1723635072226,-267.9201324,0.00016356,2]
[334905833,1723635072236,-153.0,0.00016356,2]
[334905834,1723635072245,-12282.72658,0.000164,2]
[334905835,1723635072254,-500.0,0.000164,2]
[334905836,1723635072264,-500.0,0.00016438,2]
[334905837,1723635072273,-1156.12,0.00016438,2]
[334905838,1723635072283,-200.0,0.00016438,2]
[334905839,1723635072293,-200.0,0.00016438,2]
[334905840,1723635072303,-200.0,0.00016438,2]
[334905841,1723635072313,-200.0,0.00016438,2]
[334905842,1723635072323,-200.0,0.00016438,2]
[334905843,1723635072332,-200.0,0.00016438,2]
[334905844,1723635072342,-200.0,0.00016438,2]
[334905845,1723635072351,-200.0,0.00016438,2]
[334905846,1723635072360,-200.0,0.00016438,2]
[334905847,1723635072369,-200.0,0.00016438,2]
[334905848,1723635072379,-200.0,0.00016438,2]
[334905849,1723635072388,-500.0,0.00016438,2]
[334905850,1723635072397,-500.0,0.00016438,2]
[334905851,1723635072407,-500.0,0.00016438,2]
[334905852,1723635072419,-500.0,0.00016438,2]
[334905853,1723635072430,-500.0,0.00016438,2]
[334905854,1723635072440,-500.0,0.00016438,2]
[334905855,1723635072451,-500.0,0.00016438,2]
[334905856,1723635072461,-500.0,0.00016438,2]
[334905857,1723635072471,-729.53,0.00016438,2]
[334905858,1723635072480,-409.86,0.00016438,2]
[334905859,1723635072490,-500.0,0.00016438,2]
[334905860,1723635072501,-752.29,0.00016438,2]
[334905861,1723635072514,-1148.36,0.00016438,2]
[334905862,1723635072525,-500.0,0.00016438,2]
[334905863,1723635072537,-748.17,0.00016438,2]
[334905864,1723635072547,-500.0,0.00016438,2]
[334905865,1723635072557,-500.0,0.00016438,2]
[334905866,1723635072568,-545.85,0.00016438,2]
[334905867,1723635072578,-500.0,0.00016438,2]
[334905868,1723635072587,-604.73,0.00016438,2]
[334905869,1723635072597,-500.77,0.00016438,2]
[334905870,1723635072606,-639.97,0.00016438,2]
[334905871,1723635072616,-500.0,0.00016438,2]
[334905872,1723635072625,-1809.08,0.00016438,2]
[334905873,1723635072635,-590.38,0.00016438,2]
[334905874,1723635072644,-1086.68,0.00016438,2]
[334905875,1723635072654,-751.13,0.00016438,2]
[334905876,1723635072664,-671.25,0.00016438,2]
[334905877,1723635072675,-788.87,0.00016438,2]
[334905878,1723635072684,-476.79293494,0.00016438,2]
[334905879,1723635072694,-867.43,0.00016438,2]
[334905880,1723635072704,-500.0,0.00016438,2]
[334905881,1723635072714,-520.09,0.00016438,2]
[334905882,1723635072725,-876.17,0.00016438,2]
[334905883,1723635072735,-3030.93,0.00016438,2]
[334905884,1723635072745,-4316.81,0.00016438,2]
[334905885,1723635072756,-500.0,0.00016438,2]
[334905886,1723635072768,-745.65,0.00016438,2]
[334905887,1723635072778,-500.0,0.00016438,2]
[334905888,1723635072788,-802.0,0.00016438,2]
[334905889,1723635072799,-1202.94,0.00016438,2]
[334905890,1723635072809,-500.0,0.00016438,2]
[334905891,1723635072820,-500.0,0.00016438,2]
[334905892,1723635072831,-735.63,0.00016438,2]
[334905893,1723635072841,-516.15,0.00016438,2]
[334905894,1723635072852,-709.89,0.00016438,2]
[334905895,1723635072865,-500.0,0.00016438,2]
[334905896,1723635072876,-513.65,0.00016438,2]
[334905897,1723635072886,-3876.72,0.00016438,2]
[334905898,1723635072896,-526.34,0.00016438,2]
[334905899,1723635072907,-500.0,0.00016438,2]
[334905900,1723635072919,-609.16,0.00016438,2]
[334905901,1723635072930,-1595.58,0.00016438,2]
[334905902,1723635072941,-886.37,0.00016438,2]
[334905903,1723635072952,-541.35,0.00016438,2]
[334905904,1723635072963,-500.0,0.00016438,2]
[334905905,1723635072974,-500.0,0.00016438,2]
[334905906,1723635072984,-500.0,0.00016438,2]
[334905907,1723635072993,-500.0,0.00016438,2]
[334905908,1723635073003,-500.0,0.00016438,2]
[334905909,1723635073013,-500.0,0.00016438,2]
[334905910,1723635073024,-516.04,0.00016438,2]
[334905911,1723635073036,-500.0,0.00016438,2]
[334905912,1723635073047,-500.0,0.00016438,2]
[334905913,1723635073057,-8875.6,0.00016438,2]
[334905914,1723635073068,-500.0,0.00016438,2]
[334905915,1723635073077,-151.0,0.00016438,2]
[334905916,1723635073087,-151.0,0.00016438,2]
[334905917,1723635073096,-151.0,0.00016438,2]
[334905918,1723635073106,-151.0,0.00016438,2]
[334905919,1723635073115,-465.57167577,0.00016447,2]
[334905920,1723635073125,-1023.983265,0.000165,2]
[334905921,1723635073136,-113889.39,0.000166,2]
[334905922,1723635073152,-151.0,0.000166,2]
[334905923,1723635073162,-151.0,0.000166,2]
[334905924,1723635073179,-151.716452,0.000166,2]
[334905925,1723635073189,-151.0,0.000166,2]
[334905926,1723635073199,-192.591101,0.000166,2]
[334905927,1723635073210,-192.591101,0.000166,2]
[334905928,1723635073220,-219.14014,0.000166,2]
[334905929,1723635073231,-219.14014,0.000166,2]
[334905930,1723635073242,-359.600551,0.000166,2]
[334905931,1723635073254,-359.600551,0.000166,2]
[334905932,1723635073264,-1612.303288,0.000166,2]
[334905933,1723635073274,-1612.303288,0.000166,2]
[334905934,1723635073283,-229.694717,0.000166,2]
[334905935,1723635073293,-229.694717,0.000166,2]
[334905936,1723635073302,-504.564442,0.000166,2]
[334905937,1723635073312,-504.564442,0.000166,2]
[334905938,1723635073321,-825.200145,0.000166,2]
[334905939,1723635073331,-825.200145,0.000166,2]
[334905940,1723635073342,-151.0,0.000166,2]
[334905941,1723635073351,-188.976948,0.000166,2]
[334905942,1723635073362,-316.144537,0.000166,2]
[334905943,1723635073372,-1247.112199,0.000166,2]
[334905944,1723635073382,-316.144537,0.000166,2]
[334905945,1723635073392,-1247.112199,0.000166,2]
[334905946,1723635073401,-151.0,0.000166,2]
[334905947,1723635073411,-1083.390094,0.000166,2]
[334905948,1723635073424,-1083.390094,0.000166,2]
[334905949,1723635073435,-602.0,0.000166,2]
[334905950,1723635073444,-852.65908104,0.00016617,2]
[334905951,1723635073453,-1820.6,0.000167,2]
[334905952,1723635073462,-500.0,0.00016712,2]
[334905953,1723635073471,-1156.12,0.00016712,2]
[334905954,1723635073481,-200.0,0.00016712,2]
[334905955,1723635073490,-527.37270854,0.00016712,2]
[334905956,1723635073500,-500.0,0.00016712,2]
[334905957,1723635073510,-500.0,0.00016712,2]
[334905958,1723635073521,-500.0,0.00016712,2]
[334905959,1723635073530,-500.0,0.00016712,2]